[Event "*** Titled Tuesday Blitz"]
[Site "Chess.com"]
[Date "2021.04.06"]
[Round "9"]
[White "Chigorinetz"]
[Black "731291"]
[Result "0-1"]
[WhiteElo "2526"]
[BlackElo "2673"]
[TimeControl "180+1"]
[EndTime "11:44:29 PDT"]
[Termination "731291 won by resignation"]

1. e4 {[%clk 0:03:00.9]} 1... c5 {[%clk 0:02:59]} 2. Nc3 {[%clk 0:03:00.7]} 2...
e6 {[%clk 0:02:58.9]} 3. Nge2 {[%clk 0:03:00.1]} 3... d5 {[%clk 0:02:58.2]} 4.
exd5 {[%clk 0:03:00]} 4... exd5 {[%clk 0:02:59.1]} 5. d4 {[%clk 0:02:59]} 5...
Nc6 {[%clk 0:02:58]} 6. g3 {[%clk 0:02:56.2]} 6... Bg4 {[%clk 0:02:56.7]} 7. Bg2
{[%clk 0:02:55.9]} 7... Nxd4 {[%clk 0:02:55.2]} 8. O-O {[%clk 0:02:55.5]} 8...
Nf6 {[%clk 0:02:44]} 9. Nxd4 {[%clk 0:02:20.6]} 9... Bxd1 {[%clk 0:02:35.7]} 10.
Re1+ {[%clk 0:02:20.8]} 10... Be7 {[%clk 0:02:14.8]} 11. Nf5 {[%clk 0:02:20.4]}
11... Bxc2 {[%clk 0:02:11.1]} 12. Nxe7 {[%clk 0:02:06.4]} 12... Qxe7 {[%clk
0:02:11.1]} 13. Bg5 {[%clk 0:02:05.5]} 13... Qxe1+ {[%clk 0:01:18]} 14. Rxe1+
{[%clk 0:02:04.2]} 14... Kf8 {[%clk 0:01:17.4]} 15. Nxd5 {[%clk 0:01:46]} 15...
Nxd5 {[%clk 0:01:11.8]} 16. Bxd5 {[%clk 0:01:46.9]} 16... Re8 {[%clk 0:01:05.9]}
17. Rc1 {[%clk 0:01:35.9]} 17... Be4 {[%clk 0:01:05.4]} 18. Bxe4 {[%clk
0:01:31.1]} 18... Rxe4 {[%clk 0:01:06.3]} 19. Rxc5 {[%clk 0:01:31.4]} 19... f6
{[%clk 0:01:06]} 20. Be3 {[%clk 0:01:14.4]} 20... Kf7 {[%clk 0:00:55.1]} 21. Kg2
{[%clk 0:01:05]} 21... b6 {[%clk 0:00:53.9]} 22. Rc3 {[%clk 0:01:01.9]} 22...
Rd8 {[%clk 0:00:53.5]} 23. h4 {[%clk 0:00:58.1]} 23... Rd7 {[%clk 0:00:51.3]}
24. a3 {[%clk 0:00:56.4]} 24... Ree7 {[%clk 0:00:51]} 25. Rc8 {[%clk 0:00:56.3]}
25... Rc7 {[%clk 0:00:47.3]} 26. Ra8 {[%clk 0:00:54.7]} 26... Re8 {[%clk
0:00:46.2]} 27. Rxe8 {[%clk 0:00:52.1]} 27... Kxe8 {[%clk 0:00:47.1]} 28. Kf3
{[%clk 0:00:52.2]} 28... Rc2 {[%clk 0:00:46.8]} 29. Ke4 {[%clk 0:00:53.1]} 29...
Rxb2 {[%clk 0:00:46.4]} 30. h5 {[%clk 0:00:53.7]} 30... Rb3 {[%clk 0:00:44]} 31.
h6 {[%clk 0:00:52.1]} 31... gxh6 {[%clk 0:00:43.9]} 0-1

[Event "*** Titled Tuesday Blitz"]
[Site "Chess.com"]
[Date "2021.04.06"]
[Round "9"]
[White "TioCridineno"]
[Black "JiiHart"]
[Result "1-0"]
[WhiteElo "2269"]
[BlackElo "2033"]
[TimeControl "180+1"]
[EndTime "11:44:29 PDT"]
[Termination "TioCridineno won by resignation"]

1. e4 {[%clk 0:03:00.9]} 1... c5 {[%clk 0:02:59.5]} 2. Nf3 {[%clk 0:03:00.7]}
2... Nc6 {[%clk 0:02:59.7]} 3. Bb5 {[%clk 0:03:00.8]} 3... g6 {[%clk 0:02:59.3]}
4. Bxc6 {[%clk 0:03:01]} 4... dxc6 {[%clk 0:02:59.6]} 5. Nc3 {[%clk 0:03:01.7]}
5... Bg7 {[%clk 0:02:59.4]} 6. d3 {[%clk 0:03:02]} 6... Bg4 {[%clk 0:02:58.9]}
7. h3 {[%clk 0:03:02.1]} 7... Bxf3 {[%clk 0:02:58.8]} 8. Qxf3 {[%clk 0:03:01.5]}
8... e5 {[%clk 0:02:56.6]} 9. Be3 {[%clk 0:02:58.7]} 9... b6 {[%clk 0:02:56.2]}
10. Qg3 {[%clk 0:02:55.5]} 10... Qc7 {[%clk 0:02:52.3]} 11. f4 {[%clk
0:02:54.2]} 11... O-O-O {[%clk 0:02:39.6]} 12. O-O {[%clk 0:02:51.7]} 12... Kb7
{[%clk 0:02:08.7]} 13. a4 {[%clk 0:02:49.9]} 13... a5 {[%clk 0:02:03.4]} 14. Kh1
{[%clk 0:02:43.8]} 14... h5 {[%clk 0:01:49]} 15. Rab1 {[%clk 0:02:25]} 15... h4
{[%clk 0:01:13.8]} 16. Qf3 {[%clk 0:02:24.9]} 16... Rd7 {[%clk 0:00:44.3]} 17.
Nd1 {[%clk 0:02:13.2]} 17... Ne7 {[%clk 0:00:42.5]} 18. Nf2 {[%clk 0:02:12.2]}
18... f5 {[%clk 0:00:40.8]} 19. c3 {[%clk 0:02:07.2]} 19... Rf8 {[%clk
0:00:30.8]} 20. fxe5 {[%clk 0:02:02.3]} 20... Bxe5 {[%clk 0:00:29.6]} 21. b4
{[%clk 0:01:59.7]} 21... cxb4 {[%clk 0:00:18.4]} 22. cxb4 {[%clk 0:01:59.2]}
22... axb4 {[%clk 0:00:18.1]} 23. Rxb4 {[%clk 0:01:58.7]} 23... c5 {[%clk
0:00:16.1]} 24. Rb5 {[%clk 0:01:59]} 24... Bd4 {[%clk 0:00:15.5]} 25. Rfb1
{[%clk 0:01:57.3]} 25... Nc8 {[%clk 0:00:13.1]} 26. a5 {[%clk 0:01:54.9]} 26...
Rf6 {[%clk 0:00:11.8]} 27. Bxd4 {[%clk 0:01:40.2]} 27... cxd4 {[%clk 0:00:10.6]}
28. e5+ {[%clk 0:01:35.2]} 28... Rc6 {[%clk 0:00:10.5]} 29. Rxb6+ {[%clk
0:01:23.7]} 29... Nxb6 {[%clk 0:00:09.4]} 30. Rxb6+ {[%clk 0:01:24]} 30... Kc8
{[%clk 0:00:08.4]} 31. Rxc6 {[%clk 0:01:24.1]} 1-0

[Event "*** Titled Tuesday Blitz"]
[Site "Chess.com"]
[Date "2021.04.06"]
[Round "9"]
[White "ApoIogiA"]
[Black "MusicCityMaster"]
[Result "0-1"]
[WhiteElo "2174"]
[BlackElo "2385"]
[TimeControl "180+1"]
[EndTime "11:44:30 PDT"]
[Termination "MusicCityMaster won by resignation"]

1. d4 {[%clk 0:03:00.9]} 1... Nf6 {[%clk 0:02:59]} 2. c4 {[%clk 0:03:00.8]} 2...
c5 {[%clk 0:02:59.1]} 3. d5 {[%clk 0:03:00.6]} 3... b5 {[%clk 0:02:59.5]} 4.
cxb5 {[%clk 0:03:01.1]} 4... a6 {[%clk 0:03:00]} 5. bxa6 {[%clk 0:03:02]} 5...
g6 {[%clk 0:02:59.9]} 6. Nc3 {[%clk 0:03:02.9]} 6... Bxa6 {[%clk 0:02:59.1]} 7.
e4 {[%clk 0:03:03.6]} 7... Bxf1 {[%clk 0:02:59.3]} 8. Kxf1 {[%clk 0:03:04.5]}
8... d6 {[%clk 0:02:59.3]} 9. Nf3 {[%clk 0:03:05.4]} 9... Bg7 {[%clk 0:02:59.5]}
10. g3 {[%clk 0:03:06.3]} 10... O-O {[%clk 0:02:59.5]} 11. Kg2 {[%clk
0:03:07.2]} 11... Qb6 {[%clk 0:02:59.4]} 12. Qe2 {[%clk 0:03:06.7]} 12... Qb7
{[%clk 0:02:59.4]} 13. a4 {[%clk 0:03:00.7]} 13... Na6 {[%clk 0:02:58.4]} 14.
Nb5 {[%clk 0:02:54.9]} 14... Ne8 {[%clk 0:02:24.8]} 15. Ra3 {[%clk 0:02:48.6]}
15... Nec7 {[%clk 0:02:15.4]} 16. Nxc7 {[%clk 0:02:44.5]} 16... Nxc7 {[%clk
0:02:14.8]} 17. b3 {[%clk 0:02:32.1]} 17... e6 {[%clk 0:02:13.8]} 18. Bf4 {[%clk
0:02:11]} 18... exd5 {[%clk 0:01:52.2]} 19. exd5 {[%clk 0:02:09.7]} 19... Rfe8
{[%clk 0:01:44.7]} 20. Qd3 {[%clk 0:02:03.9]} 20... Nxd5 {[%clk 0:01:37.6]} 21.
Bd2 {[%clk 0:01:27.4]} 21... Re6 {[%clk 0:01:20.7]} 22. Rd1 {[%clk 0:01:25.7]}
22... Rae8 {[%clk 0:01:09.7]} 23. Bg5 {[%clk 0:01:09.3]} 23... Nb4 {[%clk
0:01:04.6]} 24. Qc4 {[%clk 0:01:06]} 24... Bb2 {[%clk 0:00:56.4]} 25. Bh6 {[%clk
0:00:44.2]} 25... Bxa3 {[%clk 0:00:50.7]} 26. Qc3 {[%clk 0:00:44.2]} 26... f6
{[%clk 0:00:50.6]} 27. Kg1 {[%clk 0:00:30.2]} 0-1

[Event "*** Titled Tuesday Blitz"]
[Site "Chess.com"]
[Date "2021.04.06"]
[Round "9"]
[White "Chopper1905"]
[Black "Vesper2018"]
[Result "1-0"]
[WhiteElo "2917"]
[BlackElo "2543"]
[TimeControl "180+1"]
[EndTime "11:44:31 PDT"]
[Termination "Chopper1905 won by resignation"]

1. e4 {[%clk 0:03:00.9]} 1... c5 {[%clk 0:02:59.7]} 2. Nf3 {[%clk 0:03:00.7]}
2... d6 {[%clk 0:02:59.6]} 3. d4 {[%clk 0:03:01]} 3... cxd4 {[%clk 0:02:59.7]}
4. Nxd4 {[%clk 0:03:01.9]} 4... Nf6 {[%clk 0:03:00.2]} 5. Nc3 {[%clk 0:03:02.2]}
5... a6 {[%clk 0:03:00.4]} 6. h4 {[%clk 0:03:02.3]} 6... e5 {[%clk 0:02:55.9]}
7. Nb3 {[%clk 0:03:00.5]} 7... Be6 {[%clk 0:02:47.9]} 8. f4 {[%clk 0:02:56.6]}
8... exf4 {[%clk 0:02:42.1]} 9. Bxf4 {[%clk 0:02:57.5]} 9... Be7 {[%clk
0:02:42.2]} 10. Qd2 {[%clk 0:02:49.4]} 10... Nc6 {[%clk 0:02:36.1]} 11. O-O-O
{[%clk 0:02:48.3]} 11... O-O {[%clk 0:02:10.4]} 12. Kb1 {[%clk 0:02:26.2]} 12...
Ne5 {[%clk 0:02:07]} 13. Nd4 {[%clk 0:02:18.8]} 13... Rc8 {[%clk 0:01:57.4]} 14.
Nxe6 {[%clk 0:02:11.4]} 14... fxe6 {[%clk 0:01:56.9]} 15. g3 {[%clk 0:02:11.2]}
15... Kh8 {[%clk 0:01:44.3]} 16. Bh3 {[%clk 0:02:08]} 16... Nc4 {[%clk
0:01:40.7]} 17. Qd3 {[%clk 0:02:01.8]} 17... Qb6 {[%clk 0:01:17.9]} 18. Bc1
{[%clk 0:01:45.9]} 18... d5 {[%clk 0:00:24.8]} 19. exd5 {[%clk 0:01:32.5]} 19...
Ba3 {[%clk 0:00:24.1]} 20. Na4 {[%clk 0:01:25]} 20... Qb5 {[%clk 0:00:23.8]} 21.
Qb3 {[%clk 0:01:24.1]} 21... Nxd5 {[%clk 0:00:08.6]} 22. Bxe6 {[%clk 0:01:19.9]}
22... Nb4 {[%clk 0:00:07]} 23. Bxc8 {[%clk 0:01:12.8]} 23... Rxc8 {[%clk
0:00:06.7]} 24. bxa3 {[%clk 0:01:07.2]} 24... Nxa3+ {[%clk 0:00:06.3]} 25. Bxa3
{[%clk 0:01:06.8]} 1-0

[Event "*** Titled Tuesday Blitz"]
[Site "Chess.com"]
[Date "2021.04.06"]
[Round "9"]
[White "AlexSuv"]
[Black "GMaka"]
[Result "1-0"]
[WhiteElo "2580"]
[BlackElo "2461"]
[TimeControl "180+1"]
[EndTime "11:44:31 PDT"]
[Termination "AlexSuv won by resignation"]

1. d4 {[%clk 0:02:59.1]} 1... Nf6 {[%clk 0:02:59.7]} 2. c4 {[%clk 0:02:58.9]}
2... Nc6 {[%clk 0:02:59.8]} 3. Nf3 {[%clk 0:02:55.5]} 3... e6 {[%clk 0:02:59.7]}
4. a3 {[%clk 0:02:53.9]} 4... g6 {[%clk 0:03:00.2]} 5. Nc3 {[%clk 0:02:54.1]}
5... Bg7 {[%clk 0:03:00.8]} 6. e4 {[%clk 0:02:54.6]} 6... O-O {[%clk 0:03:01.2]}
7. h3 {[%clk 0:02:50.2]} 7... d6 {[%clk 0:03:00.5]} 8. Be3 {[%clk 0:02:49.7]}
8... e5 {[%clk 0:03:00.9]} 9. d5 {[%clk 0:02:49.6]} 9... Ne7 {[%clk 0:02:58.7]}
10. g4 {[%clk 0:02:49.8]} 10... Nd7 {[%clk 0:02:58.6]} 11. Bd3 {[%clk
0:02:29.7]} 11... Nc5 {[%clk 0:02:57.8]} 12. Bc2 {[%clk 0:02:26.4]} 12... f5
{[%clk 0:02:51.7]} 13. b4 {[%clk 0:02:24.4]} 13... Nxe4 {[%clk 0:02:51.3]} 14.
Nxe4 {[%clk 0:02:24.7]} 14... fxe4 {[%clk 0:02:52.2]} 15. Bxe4 {[%clk
0:02:25.2]} 15... c6 {[%clk 0:02:32.2]} 16. Ng5 {[%clk 0:02:04.4]} 16... cxd5
{[%clk 0:02:31.5]} 17. Bxd5+ {[%clk 0:02:03.5]} 17... Kh8 {[%clk 0:01:51.1]} 18.
Nf7+ {[%clk 0:02:01.3]} 18... Rxf7 {[%clk 0:01:51.3]} 19. Bxf7 {[%clk
0:02:02.2]} 19... Qf8 {[%clk 0:01:49.8]} 20. Bd5 {[%clk 0:02:01]} 20... Nc6
{[%clk 0:01:17.4]} 21. O-O {[%clk 0:01:51.5]} 21... Qe7 {[%clk 0:01:09.9]} 22.
b5 {[%clk 0:01:35.5]} 22... Nd4 {[%clk 0:01:07.4]} 23. Bxd4 {[%clk 0:01:35.9]}
23... exd4 {[%clk 0:01:08.3]} 24. Qf3 {[%clk 0:01:36.4]} 24... Bd7 {[%clk
0:00:59]} 25. Rae1 {[%clk 0:01:31.3]} 25... Qg5 {[%clk 0:00:56.5]} 26. Qf7
{[%clk 0:01:15.5]} 26... Bxg4 {[%clk 0:00:08.9]} 27. Re8+ {[%clk 0:01:07.6]} 1-0

[Event "*** Titled Tuesday Blitz"]
[Site "Chess.com"]
[Date "2021.04.06"]
[Round "9"]
[White "Slovak_fighter2000"]
[Black "NishaOnYoutube"]
[Result "1-0"]
[WhiteElo "2487"]
[BlackElo "2282"]
[TimeControl "180+1"]
[EndTime "11:44:36 PDT"]
[Termination "Slovak_fighter2000 won by checkmate"]

1. d4 {[%clk 0:03:00.9]} 1... f5 {[%clk 0:02:58.8]} 2. Bg5 {[%clk 0:02:59.2]}
2... g6 {[%clk 0:02:56.1]} 3. Nc3 {[%clk 0:02:58.3]} 3... d5 {[%clk 0:02:55]} 4.
e3 {[%clk 0:02:57.1]} 4... Bg7 {[%clk 0:02:52.3]} 5. h4 {[%clk 0:02:56.3]} 5...
Nf6 {[%clk 0:02:51.6]} 6. h5 {[%clk 0:02:54.1]} 6... Nxh5 {[%clk 0:02:41.8]} 7.
Rxh5 {[%clk 0:02:51.9]} 7... gxh5 {[%clk 0:02:42.7]} 8. Qxh5+ {[%clk 0:02:50.8]}
8... Kf8 {[%clk 0:02:41.8]} 9. Nf3 {[%clk 0:02:35.8]} 9... Nc6 {[%clk
0:02:33.5]} 10. O-O-O {[%clk 0:02:26]} 10... Be6 {[%clk 0:02:28.2]} 11. Ne2
{[%clk 0:02:18.1]} 11... Bf7 {[%clk 0:02:26.4]} 12. Qh4 {[%clk 0:02:09.7]} 12...
Qd7 {[%clk 0:02:17.8]} 13. Ng3 {[%clk 0:02:01.9]} 13... e6 {[%clk 0:02:06.5]}
14. Nh5 {[%clk 0:02:01]} 14... Bxh5 {[%clk 0:02:05.6]} 15. Qxh5 {[%clk
0:02:01.9]} 15... Qf7 {[%clk 0:02:05.8]} 16. Qh4 {[%clk 0:01:58.9]} 16... h6
{[%clk 0:01:57.9]} 17. Bf4 {[%clk 0:01:56.3]} 17... Re8 {[%clk 0:01:44.8]} 18.
Bb5 {[%clk 0:01:54.4]} 18... Qf6 {[%clk 0:01:22.9]} 19. Qh2 {[%clk 0:01:52.6]}
19... Rc8 {[%clk 0:01:08.9]} 20. Bxc6 {[%clk 0:01:46]} 20... bxc6 {[%clk
0:01:08.4]} 21. Ne5 {[%clk 0:01:46.9]} 21... Kg8 {[%clk 0:00:58.4]} 22. Nxc6
{[%clk 0:01:41.1]} 22... Qf7 {[%clk 0:00:52.8]} 23. Rg1 {[%clk 0:01:35.5]} 23...
Qd7 {[%clk 0:00:45.9]} 24. Ne5 {[%clk 0:01:32.7]} 24... Bxe5 {[%clk 0:00:45]}
25. Bxe5 {[%clk 0:01:33.6]} 25... Rh7 {[%clk 0:00:43.4]} 26. g4 {[%clk
0:01:32.9]} 26... f4 {[%clk 0:00:31.4]} 27. g5 {[%clk 0:01:30]} 27... h5 {[%clk
0:00:06.8]} 28. g6 {[%clk 0:01:29.8]} 28... Re7 {[%clk 0:00:06.6]} 29. Qxh5
{[%clk 0:01:27.3]} 29... Rg7 {[%clk 0:00:06.7]} 30. Rh1 {[%clk 0:01:22.4]} 30...
Kf8 {[%clk 0:00:06.6]} 31. Qh8+ {[%clk 0:01:21.1]} 31... Rg8 {[%clk 0:00:06.5]}
32. Qxg8+ {[%clk 0:01:20]} 32... Kxg8 {[%clk 0:00:06.7]} 33. Rh8# {[%clk
0:01:19.9]} 1-0

[Event "*** Titled Tuesday Blitz"]
[Site "Chess.com"]
[Date "2021.04.06"]
[Round "9"]
[White "Redzishchess"]
[Black "esrosenberg"]
[Result "1-0"]
[WhiteElo "2335"]
[BlackElo "2210"]
[TimeControl "180+1"]
[EndTime "11:44:40 PDT"]
[Termination "Redzishchess won on time"]

1. f4 {[%clk 0:03:00.9]} 1... g6 {[%clk 0:02:59.5]} 2. Nf3 {[%clk 0:03:01]} 2...
d5 {[%clk 0:02:59.5]} 3. e3 {[%clk 0:03:00.3]} 3... a6 {[%clk 0:02:58.7]} 4. Be2
{[%clk 0:03:00.2]} 4... c5 {[%clk 0:02:58.9]} 5. O-O {[%clk 0:03:00.6]} 5... Nc6
{[%clk 0:02:59.4]} 6. d4 {[%clk 0:02:58.9]} 6... Nh6 {[%clk 0:02:52.5]} 7. c3
{[%clk 0:02:58.8]} 7... cxd4 {[%clk 0:02:30.9]} 8. exd4 {[%clk 0:02:57.9]} 8...
Bg7 {[%clk 0:02:22.8]} 9. Bd3 {[%clk 0:02:57.6]} 9... Bg4 {[%clk 0:02:21]} 10.
h3 {[%clk 0:02:56]} 10... Bf5 {[%clk 0:02:18.4]} 11. Be3 {[%clk 0:02:53.1]}
11... Qb6 {[%clk 0:02:09.4]} 12. Rf2 {[%clk 0:02:50.1]} 12... O-O {[%clk
0:01:54.2]} 13. g4 {[%clk 0:02:45.9]} 13... Bxd3 {[%clk 0:01:50.8]} 14. Qxd3
{[%clk 0:02:45.8]} 14... Rad8 {[%clk 0:01:42.5]} 15. Na3 {[%clk 0:02:41.7]}
15... f6 {[%clk 0:01:38.4]} 16. Re1 {[%clk 0:02:25.6]} 16... Nf7 {[%clk
0:01:20.4]} 17. f5 {[%clk 0:02:13.5]} 17... Nd6 {[%clk 0:01:10.6]} 18. fxg6
{[%clk 0:02:04.6]} 18... Ne4 {[%clk 0:01:10.6]} 19. gxh7+ {[%clk 0:02:04.7]}
19... Kh8 {[%clk 0:01:10.9]} 20. Rg2 {[%clk 0:01:55.9]} 20... e6 {[%clk
0:00:31]} 21. Nh4 {[%clk 0:01:53.3]} 21... Kxh7 {[%clk 0:00:29.4]} 22. Bc1
{[%clk 0:01:48.8]} 22... f5 {[%clk 0:00:24.5]} 23. gxf5 {[%clk 0:01:49.2]} 23...
exf5 {[%clk 0:00:24.4]} 24. Kh1 {[%clk 0:01:49.6]} 24... Qc7 {[%clk 0:00:22.4]}
25. Reg1 {[%clk 0:01:47.7]} 25... Rg8 {[%clk 0:00:21]} 26. Nxf5 {[%clk
0:01:45.7]} 26... Bf6 {[%clk 0:00:18.3]} 27. Qe3 {[%clk 0:01:35]} 27... Bg5
{[%clk 0:00:14.4]} 28. Rxg5 {[%clk 0:01:34.3]} 28... Rxg5 {[%clk 0:00:13.4]} 29.
Rxg5 {[%clk 0:01:33.8]} 29... Nxg5 {[%clk 0:00:11.9]} 30. Qxg5 {[%clk
0:01:34.7]} 30... Rd6 {[%clk 0:00:01.2]} 31. Bf4 {[%clk 0:01:23.6]} 31... Rg6
{[%clk 0:00:01.3]} 32. Qh5+ {[%clk 0:01:17.1]} 1-0

[Event "*** Titled Tuesday Blitz"]
[Site "Chess.com"]
[Date "2021.04.06"]
[Round "9"]
[White "Larciano"]
[Black "chessprincesa1"]
[Result "0-1"]
[WhiteElo "1958"]
[BlackElo "2222"]
[TimeControl "180+1"]
[EndTime "11:44:40 PDT"]
[Termination "chessprincesa1 won on time"]

1. e4 {[%clk 0:03:00.9]} 1... e5 {[%clk 0:02:57.3]} 2. Nf3 {[%clk 0:02:58.8]}
2... Nc6 {[%clk 0:02:57.2]} 3. Bc4 {[%clk 0:02:59.3]} 3... Bc5 {[%clk
0:02:55.2]} 4. d3 {[%clk 0:02:59.6]} 4... Nf6 {[%clk 0:02:51.9]} 5. c3 {[%clk
0:03:00.1]} 5... d6 {[%clk 0:02:50]} 6. Nbd2 {[%clk 0:03:00.1]} 6... a6 {[%clk
0:02:49.9]} 7. Bb3 {[%clk 0:02:59.4]} 7... Ba7 {[%clk 0:02:48.6]} 8. O-O {[%clk
0:02:59.3]} 8... h6 {[%clk 0:02:44]} 9. h3 {[%clk 0:02:59.6]} 9... g5 {[%clk
0:02:40.4]} 10. Re1 {[%clk 0:02:59.7]} 10... Rg8 {[%clk 0:02:34]} 11. Nh2 {[%clk
0:02:58.6]} 11... h5 {[%clk 0:02:29.6]} 12. Bd5 {[%clk 0:02:39]} 12... Ne7
{[%clk 0:02:20.2]} 13. Qb3 {[%clk 0:02:20.5]} 13... Nfxd5 {[%clk 0:02:12.2]} 14.
exd5 {[%clk 0:02:20.6]} 14... g4 {[%clk 0:02:12.4]} 15. h4 {[%clk 0:02:18.6]}
15... Nf5 {[%clk 0:02:11.3]} 16. d4 {[%clk 0:02:17.7]} 16... Qxh4 {[%clk
0:01:59.6]} 17. Ne4 {[%clk 0:02:09.2]} 17... g3 {[%clk 0:01:54.7]} 18. fxg3
{[%clk 0:02:08.3]} 18... Nxg3 {[%clk 0:01:54]} 19. Bg5 {[%clk 0:01:52.5]} 19...
Rxg5 {[%clk 0:01:48.2]} 20. Nxg5 {[%clk 0:01:52.7]} 20... Qxg5 {[%clk
0:01:48.1]} 21. Qc2 {[%clk 0:01:31.9]} 21... Bf5 {[%clk 0:01:44.6]} 22. Qf2
{[%clk 0:01:25.1]} 22... O-O-O {[%clk 0:01:41.1]} 23. Rad1 {[%clk 0:01:22.2]}
23... h4 {[%clk 0:01:34.2]} 24. Re3 {[%clk 0:01:17.7]} 24... Rg8 {[%clk
0:01:29]} 25. Nf3 {[%clk 0:01:12]} 25... Qh5 {[%clk 0:01:25.2]} 26. Nh2 {[%clk
0:01:02.3]} 26... Qxd1+ {[%clk 0:01:22.2]} 27. Re1 {[%clk 0:00:58.3]} 27... Qh5
{[%clk 0:01:22]} 28. a4 {[%clk 0:00:53.4]} 28... h3 {[%clk 0:01:20.6]} 29. Re3
{[%clk 0:00:49.2]} 29... Ne4 {[%clk 0:01:17.1]} 30. Rf3 {[%clk 0:00:37]} 30...
Rxg2+ {[%clk 0:01:15.4]} 0-1

[Event "*** Titled Tuesday Blitz"]
[Site "Chess.com"]
[Date "2021.04.06"]
[Round "9"]
[White "Koalaskakistis"]
[Black "Giorno"]
[Result "1-0"]
[WhiteElo "2591"]
[BlackElo "2462"]
[TimeControl "180+1"]
[EndTime "11:44:46 PDT"]
[Termination "Koalaskakistis won by resignation"]

1. Nf3 {[%clk 0:03:00.9]} 1... c6 {[%clk 0:02:55.7]} 2. g3 {[%clk 0:03:01.5]}
2... d5 {[%clk 0:02:55.4]} 3. Bg2 {[%clk 0:03:02.4]} 3... g6 {[%clk 0:02:55.8]}
4. O-O {[%clk 0:03:03.3]} 4... Bg7 {[%clk 0:02:56.4]} 5. d3 {[%clk 0:03:04.2]}
5... e5 {[%clk 0:02:56.7]} 6. Nbd2 {[%clk 0:03:05.1]} 6... Ne7 {[%clk
0:02:57.1]} 7. e4 {[%clk 0:03:05.1]} 7... O-O {[%clk 0:02:56.4]} 8. Re1 {[%clk
0:03:04.5]} 8... Nd7 {[%clk 0:02:55.2]} 9. a4 {[%clk 0:03:03.3]} 9... a5 {[%clk
0:02:52.5]} 10. Nb3 {[%clk 0:02:51.5]} 10... Re8 {[%clk 0:02:51.2]} 11. Qe2
{[%clk 0:02:36.8]} 11... d4 {[%clk 0:02:49.8]} 12. Nbd2 {[%clk 0:02:25.7]} 12...
Nb6 {[%clk 0:02:39]} 13. Nc4 {[%clk 0:02:17.5]} 13... Nxc4 {[%clk 0:02:38.9]}
14. dxc4 {[%clk 0:02:18.4]} 14... h6 {[%clk 0:02:29.5]} 15. b3 {[%clk
0:02:18.4]} 15... Be6 {[%clk 0:02:28.9]} 16. Rf1 {[%clk 0:02:16.3]} 16... Qd7
{[%clk 0:02:21.9]} 17. Ne1 {[%clk 0:02:16.1]} 17... f5 {[%clk 0:02:16.8]} 18.
Nd3 {[%clk 0:02:14.6]} 18... Qc7 {[%clk 0:02:07.3]} 19. Bd2 {[%clk 0:01:55.2]}
19... fxe4 {[%clk 0:01:47.4]} 20. Bxe4 {[%clk 0:01:54.3]} 20... Bf5 {[%clk
0:01:45.3]} 21. g4 {[%clk 0:01:44.9]} 21... Bxe4 {[%clk 0:01:33.5]} 22. Qxe4
{[%clk 0:01:45.8]} 22... Rf8 {[%clk 0:01:34]} 23. Rae1 {[%clk 0:01:43.6]} 23...
Rae8 {[%clk 0:01:29.9]} 24. Nxe5 {[%clk 0:01:41]} 24... Nd5 {[%clk 0:01:06.4]}
25. cxd5 {[%clk 0:01:19.5]} 25... Rxe5 {[%clk 0:01:06.2]} 26. Qxg6 {[%clk
0:01:19]} 26... Rxd5 {[%clk 0:01:06.5]} 27. Bxh6 {[%clk 0:01:15.8]} 27... Rd6
{[%clk 0:01:01.7]} 28. Qxg7+ {[%clk 0:01:11.7]} 28... Qxg7 {[%clk 0:01:01.6]}
29. Bxg7 {[%clk 0:01:12.6]} 29... Kxg7 {[%clk 0:01:02.3]} 30. Re7+ {[%clk
0:01:09.7]} 30... Rf7 {[%clk 0:00:59.9]} 31. Rxf7+ {[%clk 0:01:09.7]} 31... Kxf7
{[%clk 0:01:00.8]} 32. Rd1 {[%clk 0:01:06.9]} 32... Ke6 {[%clk 0:01:00.6]} 33.
Kg2 {[%clk 0:01:01.1]} 33... Ke5 {[%clk 0:01:00.4]} 34. Kg3 {[%clk 0:00:59.3]}
34... c5 {[%clk 0:00:58.4]} 35. h4 {[%clk 0:00:58]} 35... Kd5 {[%clk 0:00:55.4]}
36. h5 {[%clk 0:00:55.1]} 36... c4 {[%clk 0:00:56.1]} 37. bxc4+ {[%clk
0:00:51.4]} 37... Kxc4 {[%clk 0:00:57]} 38. g5 {[%clk 0:00:51.9]} 38... Kc3
{[%clk 0:00:56.5]} 39. h6 {[%clk 0:00:52.2]} 39... Kxc2 {[%clk 0:00:56.6]} 40.
Rxd4 {[%clk 0:00:48.9]} 40... Rxd4 {[%clk 0:00:56.8]} 41. h7 {[%clk 0:00:49.5]}
41... Rd8 {[%clk 0:00:57]} 42. g6 {[%clk 0:00:50.1]} 42... Kb3 {[%clk
0:00:57.1]} 43. g7 {[%clk 0:00:50.2]} 1-0

[Event "*** Titled Tuesday Blitz"]
[Site "Chess.com"]
[Date "2021.04.06"]
[Round "9"]
[White "Handszar"]
[Black "beto-betun"]
[Result "1-0"]
[WhiteElo "2361"]
[BlackElo "2229"]
[TimeControl "180+1"]
[EndTime "11:44:46 PDT"]
[Termination "Handszar won by resignation"]

1. e4 {[%clk 0:03:00.9]} 1... c5 {[%clk 0:02:59.7]} 2. Nf3 {[%clk 0:02:59.6]}
2... d6 {[%clk 0:02:59.9]} 3. Bb5+ {[%clk 0:02:58.1]} 3... Bd7 {[%clk 0:02:59]}
4. Bd3 {[%clk 0:02:48.2]} 4... g6 {[%clk 0:02:57.7]} 5. c3 {[%clk 0:02:47.6]}
5... Bg7 {[%clk 0:02:57.1]} 6. Bc2 {[%clk 0:02:47.7]} 6... e5 {[%clk 0:02:56.6]}
7. d3 {[%clk 0:02:43.5]} 7... Nc6 {[%clk 0:02:55.9]} 8. d4 {[%clk 0:02:44.4]}
8... exd4 {[%clk 0:02:52.4]} 9. cxd4 {[%clk 0:02:45.3]} 9... Nxd4 {[%clk
0:02:50.6]} 10. Nxd4 {[%clk 0:02:39.3]} 10... Bxd4 {[%clk 0:02:51.5]} 11. Nc3
{[%clk 0:02:36.4]} 11... Nf6 {[%clk 0:02:34]} 12. Ne2 {[%clk 0:02:24]} 12... Bg4
{[%clk 0:01:24.6]} 13. f3 {[%clk 0:02:19.1]} 13... Be6 {[%clk 0:01:22.5]} 14.
Nxd4 {[%clk 0:02:17.6]} 14... cxd4 {[%clk 0:01:23.4]} 15. Ba4+ {[%clk
0:02:05.1]} 15... Kf8 {[%clk 0:01:15.9]} 16. Qxd4 {[%clk 0:01:57.1]} 16... Qa5+
{[%clk 0:01:14.3]} 17. Bd2 {[%clk 0:01:49.4]} 17... Qe5 {[%clk 0:01:11.5]} 18.
Bc3 {[%clk 0:01:32.5]} 18... Kg7 {[%clk 0:00:54.9]} 19. Qxe5 {[%clk 0:01:23.8]}
19... dxe5 {[%clk 0:00:55.8]} 20. Bxe5 {[%clk 0:01:23.5]} 20... Rhd8 {[%clk
0:00:46.8]} 21. g4 {[%clk 0:01:15.1]} 21... h6 {[%clk 0:00:46.6]} 22. h4 {[%clk
0:01:13.8]} 22... g5 {[%clk 0:00:45.8]} 23. hxg5 {[%clk 0:01:12.2]} 23... hxg5
{[%clk 0:00:46.7]} 24. f4 {[%clk 0:00:58.2]} 24... Rd3 {[%clk 0:00:20.2]} 25.
fxg5 {[%clk 0:00:53.6]} 25... Re3+ {[%clk 0:00:20.2]} 26. Kd2 {[%clk 0:00:45.9]}
26... Rxe4 {[%clk 0:00:20.1]} 27. Bxf6+ {[%clk 0:00:44.6]} 1-0